Cogmind - Beta 11.1 @@@ ROGUE MODE // 2022.06.01 @ 20:41:24 Player: Exp. Geonium Core Result: Destroyed by 8R-AWN with 8R-AWN's Boregun Performance ------------- Evolutions (0) 0 Regions Visited (3) 600 Robots Destroyed (20) 100 Value Destroyed (420) 420 Prototype IDs (23) 460 Alien Tech Used (0) 0 Bonus (-327) -327 TOTAL SCORE: 1253 Bonus ------- High Alert Combat Kills 34 Aligned with FarCom 300 Friendly Fire -661 Cogmind --------- Core Integrity 0/250 Matter 9/300 Energy 27/100 System Corruption 0% Temperature Cool (0) Movement Treading (160) Location -10/Exiles Parts ------- > --- POWER (1) -------- (None) > --- PROPULSION (2) --- Light Treads Light Treads > --- UTILITY (2) ------ Improved Targeting Computer Hardened Light Armor Plating > --- WEAPON (2) ------- Plasma Cutter > --- INVENTORY (5) ---- Hardened Light Armor Plating Hardened Light Armor Plating Assault Rifle Light Assault Rifle Peak State ------------ > --- POWER ------------ Light Ion Engine > --- PROPULSION ------- Light Treads Light Treads > --- UTILITY ---------- Improved Targeting Computer Hardened Light Armor Plating > --- WEAPON ----------- Plasma Cutter Plasma Cutter > --- INVENTORY -------- Assault Rifle Light Assault Rifle Light Assault Rifle Grenade Launcher [Rating: 11] Favorites ----------- Power Light Ion Engine Engine Light Ion Engine Propulsion Light Treads Treads Light Treads Leg Aluminum Leg Wheel Wheel Utility Hardened Light Armor Plating Storage Medium Storage Unit Processor Improved Targeting Computer Protection Hardened Light Armor Plating Weapon Assault Rifle Energy Gun EM Pulse Gun Ballistic Gun Assault Rifle Launcher Grenade Launcher Special Weapon Plasma Cutter Build | -11 -10 -10 -10 ------- Run | Scr Mat Min Exi Slots Evolved . | . . . . Power . | . . . . Propulsion . | . . . . Utility . | . . . . Weapon . | . . . . Parts Attached 33 | . 16 . 17 Power 1 | . . . 1 Engine 1 | . . . 1 Core . | . . . . Reactor . | . . . . Propulsion 8 | . 4 . 4 Treads 7 | . 3 . 4 Leg . | . . . . Wheel 1 | . 1 . . Hover . | . . . . Flight . | . . . . Utility 6 | . 4 . 2 Device . | . . . . Storage 2 | . 2 . . Processor 2 | . 1 . 1 Hackware . | . . . . Protection 2 | . 1 . 1 Artifact . | . . . . Weapon 18 | . 8 . 10 Energy Gun . | . . . . Energy Cannon . | . . . . Ballistic Gun 7 | . 5 . 2 Ballistic Cannon . | . . . . Launcher 4 | . 2 . 2 Special Weapon 7 | . 1 . 6 Impact Weapon . | . . . . Slashing Weapon . | . . . . Piercing Weapon . | . . . . Special Melee Weapon . | . . . . Unidentified Prototypes . | . . . . Parts Lost 10 | . 2 . 8 Power 1 | . . . 1 Propulsion 2 | . . . 2 Utility . | . . . . Weapon 7 | . 2 . 5 Highest Loss Streak 8 | . 1 . 8 To Critical Strikes 2 | . . . 2 Average Slot Usage (%) 97 | . 96 100 97 Engine 13 | . 14 14 12 Treads 20 | . 20 14 21 Leg 2 | . 5 . . Wheel 4 | . 2 14 6 Storage 11 | . 14 14 6 Processor 4 | . 3 . 7 Protection 10 | . 7 14 14 Ballistic Gun 22 | . 23 28 19 Launcher 3 | . 1 . 6 Special Weapon 1 | . . . 1 Naked Turns . | . . . . Heaviest Build 51 | 12 51 51 51 Greatest Support 40 | 20 40 10 40 Greatest Overweight (x) 5 | . 5 5 5 Average Overweight (x) 1 | . 1 5 2 Largest Inventory Capacity 20 | . 20 20 20 Average Capacity 11 | . 11 20 11 Most Carried 18 | . 18 18 18 Average Carried 10 | . 10 18 10 Final Capacity 20 | 8 20 20 5 Final Carried 18 | 6 18 18 4 Class Distribution -------------------- 87% | Mutant 12% | Scavenger-Mutant Dominant Class ---------------- Mutant | -10/Materials Mutant | -10/Mines Mutant | -10/Exiles Resources | -11 -10 -10 -10 ----------- Run | Scr Mat Min Exi Matter Collected 474 | 200 259 15 . Remotely . | . . . . Salvage Created 486 | . 458 . 28 Parts 36 | . 36 . . Haulers Intercepted 2 | . 2 . . Recyclers Shooed . | . . . . Parts Field Recycled . | . . . . Retrieved Matter . | . . . . Parts Self-Destructed . | . . . . Prevented . | . . . . Kills | -11 -10 -10 -10 ------- Run | Scr Mat Min Exi Combat Hostiles Destroyed 21 | . 18 . 3 Guns 14 | . 14 . . AOE 7 | . 4 . 3 Classes Destroyed 4 | . 3 . 1 Hauler 2 | . 2 . . Swarmer 9 | . 9 . . Grunt 9 | . 9 . . Assembled 7 | . . . 7 Best Kill Streak 6 | . 6 . 3 Combat Bots Only 6 | . 6 . 3 Max Kills in Single Turn 4 | . 2 . 4 Gunslinging . | . . . . Exploded 2 | . 2 . 2 Melee . | . . . . Uniques/NPCs Destroyed . | . . . . Combat | -11 -10 -10 -10 -------- Run | Scr Mat Min Exi Damage Taken 1732 | . 805 . 927 Core 259 | . 108 . 151 Absorbed by Shields . | . . . . Core Remaining (%) 100 | 100 . . . Volleys Fired 74 | . 51 . 23 Largest 2 | . 2 . 2 Hottest 60 | . 60 . 60 Shots Fired 133 | . 94 . 39 Gun 108 | . 86 . 22 Cannon . | . . . . Launcher 11 | . 6 . 5 Special 14 | . 2 . 12 Kinetic 101 | . 79 . 22 Thermal 14 | . 2 . 12 Explosive 11 | . 6 . 5 Electromagnetic 7 | . 7 . . Robot Hit Streak 9 | . 7 . 9 Robot Miss Streak 4 | . 4 . 3 Penetration Max . | . . . . Secondary Targets . | . . . . Shots Hit Robots 81 | . 58 . 23 Core Hits 56 | . 35 . 21 Critical Kills . | . . . . Critical Parts Destroyed . | . . . . Critical Strikes 1 | . . . 1 Sever 1 | . . . 1 Melee Attacks . | . . . . Impact . | . . . . Slashing . | . . . . Piercing . | . . . . Sneak Attacks . | . . . . Combat Hostiles . | . . . . Follow-up Attacks . | . . . . Damage Inflicted 1486 | . 937 . 549 Guns 703 | . 580 . 123 Cannons . | . . . . Explosions 771 | . 353 . 418 Melee . | . . . . Ramming 4 | . 4 . . Kinetic 659 | . 536 . 123 Thermal 8 | . . . 8 Explosive 771 | . 353 . 418 Electromagnetic 44 | . 44 . . Impact . | . . . . Slashing . | . . . . Piercing . | . . . . Highest Corruption . | . . . . Average Corruption . | . . . . Corruption Purged . | . . . . Corruption Blocked . | . . . . Overload Shots . | . . . . Overflow Damage 7 | . . . 7 Projectiles . | . . . . Explosions 7 | . . . 7 Melee . | . . . . Knockbacks 1 | . 1 . . Impact 1 | . 1 . . Kinetic . | . . . . Secondary . | . . . . Self-Inflicted Damage 88 | . 88 . . Shots 3 | . 3 . . Rammed 3 | . 3 . . Targets Rammed 3 | . 3 . . Kicked . | . . . . Crushed . | . . . . Highest Temperature 105 | . 105 . 30 Average Temperature 28 | . 35 . 16 Received Heat Transfer 198 | . 198 . . Siege Activations . | . . . . Robots Corrupted . | . . . . Combat Hostiles . | . . . . Parts Fried . | . . . . Impact Corruptions . | . . . . Robots Melted . | . . . . Combat Hostiles . | . . . . Parts Melted . | . . . . Heat Transferred 72 | . . . 72 Parts Sabotaged . | . . . . Parts Stolen . | . . . . Parts Stripped . | . . . . Power Chain Reactions . | . . . . Missiles Intercepted . | . . . . Alert | -11 -10 -10 -10 ------- Run | Scr Mat Min Exi Peak Influence 525 | . 525 157 . Initial 157 | . . 157 . Average 320 | . 327 157 . Maximum Alert Level 2 | . 2 . . Low Security (%) 23 | . 19 100 . Level 1 37 | . 39 . . Level 2 39 | . 40 . . Level 3 . | . . . . Level 4 . | . . . . Level 5 . | . . . . High Security . | . . . . Max Security . | . . . . Squads Dispatched 5 | . 5 . . Investigation 3 | . 3 . . Extermination . | . . . . Reinforcement 2 | . 2 . . Assault . | . . . . Garrison . | . . . . Intercept . | . . . . Searches Triggered . | . . . . Construction Impeded . | . . . . Haulers Reinforced . | . . . . Active Scanning Responses . | . . . . Cargo Convoy Interrupts . | . . . . Stealth | -11 -10 -10 -10 --------- Run | Scr Mat Min Exi Distress Signals 2 | . 2 . . Communications Jammed . | . . . . Distress Signals . | . . . . Times Spotted 39 | . 35 . 4 Peak Tracking Total 8 | . 8 . 5 Tactical Retreats 2 | . 2 . . Traps | -11 -10 -10 -10 ------- Run | Scr Mat Min Exi Traps Triggered 1 | . 1 . . Indirectly . | . . . . Trap Hack Attempts . | . . . . Triggered . | . . . . Disarmed . | . . . . Reprogrammed . | . . . . Reused . | . . . . Traps Extracted . | . . . . Installed . | . . . . Triggered . | . . . . Machines | -11 -10 -10 -10 ---------- Run | Scr Mat Min Exi Machines Disabled 4 | . 2 . 2 Max in Single Turn 2 | . 2 . 1 Machines Sabotaged . | . . . . Garrisons Compromised . | . . . . Overloaded Fab Kills . | . . . . Hacking | -11 -10 -10 -10 --------- Run | Scr Mat Min Exi Machines Accessed 6 | . 5 . 1 Terminals 4 | . 4 . . Fabricators . | . . . . Repair Stations . | . . . . Recycling Units 1 | . 1 . . Scanalyzers . | . . . . Garrison Access . | . . . . Total Hacks 9 | . 8 . 1 Successful 8 | . 7 . 1 Failed 1 | . 1 . . Catastrophic . | . . . . Database Lockouts . | . . . . Manual 8 | . 7 . 1 Terminals 7 | . 7 . . Fabricators . | . . . . Repair Stations . | . . . . Recycling Units 1 | . 1 . . Scanalyzers . | . . . . Garrison Access . | . . . . Terminal Hacks 3 | . 2 . 1 Level Access Points 1 | . 1 . . Terminal Index 1 | . 1 . . EX-Prototype ID Bank 1 | . . . 1 Fabricator Hacks . | . . . . Repair Station Hacks . | . . . . Recycling Unit Hacks . | . . . . Scanalyzer . | . . . . Garrison Access Hacks . | . . . . Unauthorized Hacks 5 | . 5 . . Terminals 4 | . 4 . . Disrupt 1 | . 1 . . Operators 1 | . 1 . . Sabotage 1 | . 1 . . Search 1 | . 1 . . Fabricators . | . . . . Repair Stations . | . . . . Recycling Units 1 | . 1 . . Tunnel 1 | . 1 . . Scanalyzers . | . . . . Garrison Access . | . . . . Data Cores Recovered . | . . . . Used . | . . . . Hacking Detections 2 | . 2 . . Full Trace Events . | . . . . Feedback Events . | . . . . Feedback Blocked . | . . . . Robot Schematics Acquired . | . . . . Robots Built . | . . . . Authchips . | . . . . Time . | . . . . Total Robot Build Rating . | . . . . Part Schematics Acquired . | . . . . Parts Built . | . . . . Authchips . | . . . . Time . | . . . . Total Part Build Rating . | . . . . Parts Repaired . | . . . . Time . | . . . . Parts Recycled . | . . . . Recycled Matter . | . . . . Retrieved Matter . | . . . . Retrieved Components . | . . . . Parts Scanalyzed . | . . . . Part Schematics Acquired . | . . . . Parts Damaged . | . . . . Bothacking | -11 -10 -10 -10 ------------ Run | Scr Mat Min Exi Used RIF Installer . | . . . . Robots Hacked . | . . . . Non-combat . | . . . . Combat . | . . . . Robot Hacks Applied . | . . . . Relay Couplers Released . | . . . . Fabnet Peak Effective % . | . . . . Robots Rewired . | . . . . Allies Hacked . | . . . . Hacks Repelled . | . . . . Allies | -11 -10 -10 -10 -------- Run | Scr Mat Min Exi Total Allies . | . . . . Largest Group . | . . . . Highest-Rated Group . | . . . . Highest-Rated Ally . | . . . . Total Orders . | . . . . Ally Attacks . | . . . . Total Damage . | . . . . Kills . | . . . . Allies Corrupted . | . . . . Allies Melted . | . . . . Intel | -11 -10 -10 -10 ------- Run | Scr Mat Min Exi Robot Analysis Total . | . . . . Derelict Logs Recovered . | . . . . Drone Launches . | . . . . Drone Recoveries . | . . . . Exploration | -11 -10 -10 -10 ------------- Run | Scr Mat Min Exi Turns Passed 1668 | . 935 38 695 Spaces Moved 886 | 1 493 25 367 Core 3 | . . . 3 Treads 433 | . 277 . 156 Legs 116 | 1 115 . . Wheels 334 | . 101 25 208 Hover . | . . . . Flight . | . . . . Fastest Speed 95 | 120 120 155 95 Average Speed 153 | 120 149 155 157 Slowest Speed 240 | 120 240 155 200 Overloaded Moves . | . . . . Propulsion Burnouts . | . . . . Robots Hopped . | . . . . Cave-ins Triggered . | . . . . Exploration Rate (%) 30 | 2 70 7 42 Regions Visited 3 Branch Regions 2 Pre-discovered Areas 1 | . 1 . . Known Exits Taken . | . . . . Unknown Exits Taken 3 | 1 1 1 . Scrap Searched 1 | . . 1 . Spaces Dug . | . . . . Terrain Destroyed 31 | . 21 . 10 Melee . | . . . . Projectile . | . . . . AOE 31 | . 21 . 10 Terrain Rammed . | . . . . Walls Destroyed . | . . . . Machines Disabled . | . . . . Actions | -11 -10 -10 -10 --------- Run | Scr Mat Min Exi Total 1064 | . 596 24 444 Wait 9 | . 9 . . Move 883 | . 492 24 367 Hop . | . . . . Pick Up 35 | . 17 . 18 Fast Attach 10 | . 6 . 4 Attach 7 | . 2 . 5 Detach . | . . . . Swap 16 | . 8 . 8 Drop 27 | . 8 . 19 Fire 74 | . 51 . 23 Melee . | . . . . Ram . | . . . . Kick . | . . . . Crush 3 | . 3 . . Escape Stasis . | . . . . Rewire . | . . . . Trap . | . . . . Miscellaneous . | . . . . Route ------- -11/Scrapyard -10/Materials (discovered 4 exits: *Mat x3 / [*Min]) -10/Mines -10/Exiles (discovered 1 exit: [*Min]) History --------- Turn | Location | Event 1 | -11/Scrapyard | Discovered new exit (range 0) 1 | -11/Scrapyard | Entered Materials 269 | -10/Materials | Discovered new exit (range 7) 539 | -10/Materials | Identified exit to Materials 714 | -10/Materials | Build established: Mutant 936 | -10/Materials | Entered Mines 967 | -10/Mines | Deemed a non-threat by the Exiles lab entrance 967 | -10/Mines | Discovered new exit (range 5) 974 | -10/Mines | Entered Exiles 998 | -10/Exiles | Discovered new exit (range 15) 1013 | -10/Exiles | Met 8R-AWN 1038 | -10/Exiles | Met EX-HEX 1085 | -10/Exiles | Met EX-BIN 1106 | -10/Exiles | Aligned with FarCom system 1108 | -10/Exiles | Given EX-Vault access code 1143 | -10/Exiles | Opened EX-Vault 1181 | -10/Exiles | Warned to stay clear of 0b10 Research branches 1562 | -10/Exiles | Attacked by the Exiles 1578 | -10/Exiles | Core integrity fell below 50% 1625 | -10/Exiles | Core integrity fell below 20% 1669 | -10/Exiles | Destroyed by 8R-AWN with 8R-AWN's Boregun Last Messages --------------- 01634_ Critical hit (Destroy). 01634_ Penetrated by HV Slug. 01634_ Critical hit (Destroy). 01634_ Lgt. Assault Rifle destroyed. 01636_ Acquired Lgt. Treads. 01639_ Penetrated by HV Slug. 01644_ HV Slug penetrates Wall. 01644_ Penetrated by HV Slug. 01644_ Critical hit (Destroy). 01645_ The unstable cave ceiling collapses. 01648_ HV Slug penetrates Wall. 01648_ Penetrated by HV Slug. 01655_ 8R-AWN Prototype Device severed. 01656_ Penetrated by HV Slug. 01656_ Critical hit (Destroy). 01661_ Penetrated by HV Slug. 01661_ Plasma Cutter destroyed. 01665_ HV Slug penetrates Assembled Analyzer. 01665_ HV Slug penetrates Wall. 01669_ Penetrated by HV Slug. Map ----- +----------------------------------------------------+ | """"#?????????????????????????????????? | | """#?????????????????????????????????? | | """#?????????????????????????????????? | | """#?????????????????????????????????? | | """#?????????????????????????????????? | | """#?????????????????????????????????? | | """"?????????????????????????????????? | | """#?????????????????????????????????? | | " "X" """??????????????????????????????????? | | " """ ??????????????????????????????????? | | " """""""""#?????????????????????????????????? | | " ###########?????????????????????????????????? | | " #?????? ????????????????????????????????????? | | #??????? #??????????????????????????????????? | | ##??????# #?????????????????????????????????? | | ##???####;#####????????????????????????????? | | ##### "" """"##??????????????????????????? | | "" """"##?????????????????????????? | | " #?????????????????????????? | | """#?????????????????????????? | | a"#???????????#####?????????? | | " "##?#???????##" #?????????? | | * "##;???????#" #?????????? | | """ ! ! "#??????##" ##????????? | | ##""" =! ###??### ###??????? | | ?##### ! ]! @;;#??# ######## | | ?????##""" g;#?## #""""## | | ??????#"""" ### | | ??????#"" * ## | | ?????#"""" #### | | ???""" ""#?#"""""#### | | ??"" #"""##?#######??#### | | ? ######??????????????# | | ? ##???????????????????? | | ? " ##????????????????????? | | ? "" """ * * "#?????????????????????? | | ? ##""" " " ""#" ##?????????????????????? | | ?????####""" """## " #?????????????????????? | | ????????###""""#?### ## #?????????????????????? | | ??????????#####????### ####??????????????????????? | | ??????????????????????#??????????????????????????? | | ?????????????????????????????????????????????????? | | ?????????????????????????????????????????????????? | | ?????????????????????????????????????????????????? | | ?????????????????????????????????????????????????? | | ?????????????????????????????????????????????????? | | ?????????????????????????????????????????????????? | | ?????????????????????????????????????????????????? | | ?????????????????????????????????????????????????? | | ?????????????????????????????????????????????????? | +----------------------------------------------------+ Best States ------------- Heat Dissipation 25 Energy Generation 10 Energy Capacity 125 Matter Stores 300 Matter Capacity 300 Sight Range 16 Terrain Scan Density 10 Armor Coverage 150 Evasion (%) 55 Targeting Accuracy 6 Recoil Reduction 2 Item Schematics ----------------- None Robot Schematics ------------------ None Fabricated ------------ Nothing Alien Tech Used ----------------- None Achievements -------------- None Challenges ------------ None Game ------ Seed GuidedShadingScanner Manual? 0 Play Time 00:19:33 Cumulative 187.0 hours Start 2022.06.01 @ 20:17:04 End 2022.06.01 @ 20:41:24 Sessions 1 Manual Loads 0 Difficulty Rogue Special Mode None Game No. 260 Rogue 260 Adventurer 0 Explorer 0 Win Type - Total 10 Types 8/0/1/1/0/0/0/0/0 Lore% 57 Gallery% 77 Achievement% 67 Wizard Run 0 Options --------- ASCII 0 Keyboard 0 Movement Mouse Keybinds 0 Fullscreen 1 Font 18/Terminus Map View 76x50 Tactical HUD 1 Map Filters NONE Filters NONE Steam 1 RUN: a9c2bab6-e7e4-47d4-809f-f4b31154eed9